{"text_format":"1","workbook":"xlsx","n_sheets":4,"sheets":["Instrucciones","Relación de gastos","Relación de ingresos ","Gastos e ingresos"],"not_rendered":{"charts":0,"images":2,"macros":1,"external_links":0,"defined_names":8,"comments":0,"pivot_tables":0},"unopened":[],"bounds":{"document_bytes":16777216,"sheet_cells":100000,"rows_first":2000,"rows_last":500,"rows_between":2000,"halvings":0,"cell_chars":16384,"cell_head_chars":4096},"cells_cut":0,"cells_raw":0,"read":"whole","date_system":"1900"}

{"sheet":"Instrucciones","index":0,"n_rows":21,"n_cols":7,"rows_kept":21,"cut":false,"hidden":false,"merged":[[19,1,19,3],[20,1,20,5],[11,1,11,17],[16,1,16,17],[18,1,18,17],[2,6,2,10],[10,1,10,17],[3,2,4,17],[5,2,5,17],[7,2,7,17],[9,1,9,17]]}
[]
[]
[null,null,null,null,null,null,"Memoria justificativa económica Aa"]
[null,null,"SUBVENCIONES DEL AYUNTAMIENTO DE BARCELONA PARA EL FORTALECIMIENTO DE LA ECONOMÍA SOCIAL Y SOLIDARIA Y POR LA INTERCOOPERACIÓN EN LA ESTRATEGIA #ESSBCN2030 - ENFORTIM L'ESS 2025"]
[]
[null,null,"Aspectos relevantes relacionados con la justificación"]
[]
[null,null,"INSTRUCCIONES"]
[]
[null,"1. Cumplimentar sólo las celdas en blanco de la pestaña: \"Relación de gastos\" , \"Relación de ingresos\" y \"gastos e ingresos\" con los datos económicos del proyecto"]
[null,"1.1 Cumplimentar el cuadro Datos básicos de la pestaña \"Relación de gastos\""]
[null,"1.2 Cumplimentar el cuadro Gastos del proyecto/actividad/servicio subvencionado de la pestaña \"Relación de gastos\""]
[null,"1.3 Tener en cuenta los cuadros \"notas\" y \"obligaciones de la modalidad\" de la pestaña \"Relación de gastos\""]
[null,"1.4 Cumplimentar el cuadro Ingresos del proyecto/actividad/servicio subvencionado de la pestaña \"Relación de ingresos\""]
[null,"1.5 Tener en cuenta los cuadros \"notas\" de la pestaña \"Relación de ingresos\""]
[]
[null,"2. Imprimir las hojas de las 3 pestañas en formato pdf"]
[]
[null,"3. Es necesario que registre la documentación telemáticamente dentro de la convocatoria específica y utilice el código de expediente que sale a la publicación de la resolución provisional y/o definitiva"]
[null,"Enlace para realizar el trámite"]
[null,"Enlace para encontrar código expediente resolución provisional"]

{"sheet":"Relación de gastos","index":1,"n_rows":118,"n_cols":10,"rows_kept":118,"cut":false,"hidden":false,"merged":[[110,0,110,10],[92,0,92,6],[93,0,93,6],[113,0,113,10],[115,0,115,10],[116,0,116,10],[117,0,117,10],[92,9,92,10],[87,9,87,10],[88,9,88,10],[89,9,89,10],[90,9,90,10],[91,0,91,6],[91,9,91,10],[103,0,103,10],[104,0,104,10],[105,0,105,10],[106,0,106,10],[107,0,107,10],[108,0,108,10],[109,0,109,10],[111,0,111,10],[112,0,112,10],[114,0,114,10],[37,0,37,6],[37,9,37,10],[101,0,101,10],[85,0,85,6],[85,9,85,10],[86,0,86,10],[79,0,79,6],[79,9,79,10],[80,0,80,10],[81,9,81,10],[82,9,82,10],[100,0,100,10],[83,9,83,10],[84,9,84,10],[93,9,93,10],[96,0,96,10],[98,0,98,10],[99,0,99,10],[68,0,68,10],[61,0,61,6],[30,0,30,6],[30,9,30,10],[31,0,31,10],[56,0,56,10],[57,9,57,10],[58,9,58,10],[59,9,59,10],[60,9,60,10],[51,9,51,10],[52,9,52,10],[53,9,53,10],[54,9,54,10],[55,0,55,6],[55,9,55,10],[38,0,38,10],[39,9,39,10],[40,9,40,10],[41,9,41,10],[42,9,42,10],[32,0,32,10],[33,9,33,10],[36,9,36,10],[74,0,74,10],[75,9,75,10],[76,9,76,10],[77,9,77,10],[78,9,78,10],[69,9,69,10],[70,9,70,10],[71,9,71,10],[72,9,72,10],[73,0,73,6],[73,9,73,10],[17,0,17,10],[18,9,18,10],[8,3,8,4],[16,9,16,10],[16,0,16,6],[12,9,12,10],[13,9,13,10],[14,9,14,10],[11,0,11,10],[15,9,15,10],[10,0,10,10],[47,9,47,10],[48,9,48,10],[49,0,49,6],[49,9,49,10],[50,0,50,10],[67,0,67,6],[43,0,43,6],[43,9,43,10],[44,0,44,10],[45,9,45,10],[46,9,46,10],[61,9,61,10],[62,0,62,10],[63,9,63,10],[64,9,64,10],[65,9,65,10],[66,9,66,10],[67,9,67,10],[4,0,4,1],[8,1,9,1],[8,0,9,0],[7,0,7,4],[1,0,1,10],[5,0,5,1],[3,2,3,3],[4,2,4,3],[5,2,5,3],[3,0,3,1],[3,4,3,6],[4,4,4,6],[5,4,5,6],[8,2,9,2],[3,7,3,8],[4,7,4,8],[9,9,9,10],[8,9,8,10],[5,7,5,8],[6,0,6,1],[6,2,6,10],[28,9,28,10],[29,0,29,6],[29,9,29,10],[19,9,19,10],[20,9,20,10],[21,9,21,10],[22,0,22,6],[22,9,22,10],[24,0,24,10],[25,9,25,10],[26,9,26,10],[27,9,27,10],[23,9,23,10],[23,0,23,6]]}
[]
["Relación clasificada de todos los gastos realizados para la ejecución de la actividad subvencionada"]
["Datos básicos"]
["Persona jurídica/física beneficiaria:",null,null,null,"Importe del coste total del proyecto:",null,null,null,null,"euros"]
["Código de subvención:",null,null,null,"Importe de la subvención otorgada:",null,null,null,null,"euros"]
["Nombre del proyecto subvencionado:",null,null,null,"Periodo de ejecución del proyecto subvencionado:",null,null,null,null,"a"]
["Resto de personas  firmantes acuerdo intercooperación (si aplica):         "]
["Gastos del proyecto/actividad/servicio subvencionado(*)"]
["Núm. de orden (0)","Número de documento: justificantes gasto personal (1), factura o recibo/ticket(2)","Concepto de la factura / \ndocumento probatorio equivalente","Emisor/a de la factura",null,"Fecha de emisión","Importe total de la factura","Importe imputable (dedicado) al proyecto (3)","Importe imputable a la subvención municipal (4)","Observaciones"]
[null,null,null,"NIF","Nom","dd/mm/aaaa","euros","euros","euros"]
["GASTOS DIRECTOS (Aquellos que se identifican directamente con el proyecto)"]
["D.1 Nóminas y seguridad social (régimen general o socios/as cooperativistas en régimen de autónomos) del personal propio vinculado al proyecto subvencionable"]
["D.1.1"]
[]
[]
[]
["Subtotal D.1",null,null,null,null,null,null,{"$f":"SUM(H13:H16)","v":0},{"$f":"SUM(I13:I16)","v":0}]
["D.2 Rendimientos anuales netos del empresario/a individual (ver 13.2 bases)"]
["D.2.1"]
[]
[]
[]
["Subtotal D.2",null,null,null,null,null,null,{"$f":"SUM(H19:H22)","v":0},{"$f":"SUM(I19:I22)","v":0}]
["TOTAL GASTOS PERSONAL (D1+D2 Máximo 40% del importe imputable a la subvención municipal)",null,null,null,null,null,null,{"$f":"+H17+H23","v":0},{"$f":"+I17+I23","v":0},{"$f":"IF(($I$17+$I$23)<=$H$5*0.4,\"\",\"Error: D1+D2 no pot superar el 40% de la subvenció\")","v":""}]
["D3. Trabajos realizados por profesionales y empresas externas directamente vinculadas al proyecto, (ver gastos directos, modalidad Aa, a la convocatoria)"]
[]
[]
[]
[]
["Subtotal D.3",null,null,null,null,null,null,{"$f":"SUM(H26:H29)","v":0},{"$f":"SUM(I26:I29)","v":0}]
["TOTAL GASTOS DIRECTOS",null,null,null,null,null,null,{"$f":"+H17+H23+H30","v":0},{"$f":"+I17+I23+I30","v":0},{"$f":"IF(($I$17+$I$23)<=$H$5*0.4,\"\",\"Error: D1+D2 no pot superar el 40% de la subvenció\")","v":""}]
["GASTOS INDIRECTOS (no se pueden asignar directamente al proyecto sin utilizar algún % de asignación) (máximo 10% de subvención)"]
["I.1 Personal propio vinculado indirectamente (nóminas y seguridad social)"]
[]
[]
[]
[]
["Subtotal I1",null,null,null,null,null,null,{"$f":"SUM(H34:H37)","v":0},{"$f":"SUM(I34:I37)","v":0}]
["I.2 Seguros"]
[]
[]
[]
[]
["Subtotal I2",null,null,null,null,null,null,{"$f":"SUM(H40:H43)","v":0},{"$f":"SUM(I40:I43)","v":0}]
["I.3 Amortización"]
[]
[]
[]
[]
["Subtotal I3",null,null,null,null,null,null,{"$f":"SUM(H46:H49)","v":0},{"$f":"SUM(I46:I49)","v":0}]
["I.4 Alquiler de bienes inmuebles"]
[]
[]
[]
[]
["Subtotal I4",null,null,null,null,null,null,{"$f":"SUM(H52:H55)","v":0},{"$f":"SUM(I52:I55)","v":0}]
["I.5 Adquisición de materiales y bienes consumibles parcialmente imputables al proyecto"]
[]
[]
[]
[]
["Subtotal I5",null,null,null,null,null,null,{"$f":"SUM(H58:H61)","v":0},{"$f":"SUM(I58:I61)","v":0}]
["I.6 Mantenimiento de edificios y/o instalaciones"]
[]
[]
[]
[]
["Subtotal I6",null,null,null,null,null,null,{"$f":"SUM(H64:H67)","v":0},{"$f":"SUM(I64:I67)","v":0}]
["I.7 Comunicaciones (teléfono, correos, conexión a internet)"]
[]
[]
[]
[]
["Subtotal I7",null,null,null,null,null,null,{"$f":"SUM(H70:H73)","v":0},{"$f":"SUM(I70:I73)","v":0}]
["I.8 Gastos financieros"]
[]
[]
[]
[]
["Subtotal I8",null,null,null,null,null,null,{"$f":"SUM(H76:H79)","v":0},{"$f":"SUM(I76:I79)","v":0}]
["I.9 Suministros "]
[]
[]
[]
[]
["Subtotal I9",null,null,null,null,null,null,{"$f":"SUM(H82:H85)","v":0},{"$f":"SUM(I82:I85)","v":0}]
["I.10 Trabajo realizado por otras empresas, parcialmente imputables al proyecto (limpieza, seguridad...)"]
[]
[]
[]
[]
["Subtotal I10",null,null,null,null,null,null,{"$f":"SUM(H88:H91)","v":0},{"$f":"SUM(I88:I91)","v":0}]
["TOTAL GASTOS INDIRECTOS",null,null,null,null,null,null,{"$f":"+H38+H44+H50+H56+H62+H68+H74+H80+H86+H92","v":0},{"$f":"+I38+I44+I50+I56+I62+I68+I74+I80+I86+I92","v":0},{"$f":"IF(I93<=H5*0.1,\"\",\"Error: Despeses indirectes no poden superar el 10% de la subvenció\")","v":""}]
["TOTAL GASTOS PROYECTO (DIRECTOS + INDIRECTOS)",null,null,null,null,null,null,{"$f":"H31+H93","v":0},{"$f":"I31+I93","v":0}]
[]
["(*) Notas"]
["Se deben relacionar todos los gastos del proyecto/actividad/servicio subvencionado. En el caso de que el número de filas de cada concepto sea insuficiente se puede insertar líneas dentro del mismo concepto, teniendo en cuenta que el sumatorio total incluya las nuevas líneas insertadas."]
["(0) El número de orden debe ser correlativo empezando por D.1.1, D.1.2, D.1.3, D.2.4, etc."]
["(1) Respecto a los gastos de recursos humanos, puede ser subvencionable el coste total salarial mensual, que corresponde a la suma de la retribución bruta que aparece en la nómina del trabajador/a más la cuota de la empresa en la Seg. Social. Los gastos de personal se justifican con la nómina del trabajador/a acompañada de los correspondientes RLC y RNT (anteriores TC1 y TC2) de la TMV y el modelo 111 del IRPF."]
["(2) En el caso de que el documento justificativo del resto de gastos, no sea una factura, sino otro documento probatorio equivalente, como un recibo o justificante (como por dietas o transporte público), indicarlo en la columna \"observaciones\"."]
["(3) En el caso de que un justificante incluya conceptos que no tienen relación con el proyecto/actividad/servicio para el que se ha otorgado la subvención, aquí sólo se debe indicar la parte que realmente se ha dedicado al proyecto."]
["(4) En esta columna se debe indicar el importe total o parcial de la factura que se imputa a la subvención recibida del Ayuntamiento de Barcelona. El total imputado, en esta columna, debe ser igual al importe de la subvención recibida."]
[]
["Modalidad Aa: Creación de nuevas cooperativas y transformación, de otras formas jurídicas pre-existentes, en cooperativas."]
["Se establece como obligación de la subvención la constitución de la cooperativa, estar en disposición del NIF provisional y haber presentado la solicitud de inscripción en el registro correspondiente antes de la finalización del proyecto subvencionable. Se reconocerá como válida la solicitud, en el caso de que el registro no haya respondido a la petición durante el periodo de ejecución. Igualmente en los proyectos de transformación para convertirse en cooperativa, deberá acreditarse, como mínimo, la solicitud de inscripción presentada en el registro correspondiente en el momento de la justificación."]
["1. La cuantía de la subvención otorgada no superará el 80% del gasto total del proyecto a subvencionar."]
["2. El importe máximo de subvención para la modalidad Aa del ámbito temático A. Fortalecimiento: Creación y consolidación es 6.000€."]
["3. En el caso de que la solicitud presentada sobrepase el importe máximo, se considerará como importe solicitado el máximo de lo establecido en la convocatoria."]
["4. Se limita con un máximo del 40% el importe de la subvención para gastos de personal propio que participa de forma directa y debidamente al proyecto."]
["5. Sólo con carácter excepcional, los/as empresarios/as individuales que no tengan personas trabajadoras en plantilla podrán acreditar sus trabajos mediante una declaración responsable acompañada de las declaraciones IRPF (modelo 130) del ejercicio corriente. El precio/hora imputado al proyecto subvencionado no podrá superar la cantidad resultante de dividir los rendimientos anuales netos del empresario/a individual por 1800."]
["6. En caso de realizarse gastos superiores a los importes establecidos por los contratos menores de servicios, suministros y obras de la Ley de Contratos del Sector Público 9/2017, se deberán incorporar tres presupuestos solicitados y argumentar el motivo de la adjudicación en el caso de no ser la propuesta más ventajosa económicamente"]
["7. En ningún caso se considerarán gastos subvencionables:\n> Los impuestos indirectos cuando sean susceptibles de recuperación o compensación.\n> Los gastos de inversión, incluidas las adquisiciones de bienes muebles.\n> Los gastos realizados con fecha anterior al inicio del proyecto y fecha posterior a la finalización del proyecto.\n> Otros gastos que se indiquen en la convocatoria."]
["8. Son imputables en esta modalidad los gastos indirectos, detallados en el apartado 13.3. de las bases reguladoras; con un máximo del 10% del importe de la subvención."]
["9. La retribución de las personas contratadas en el marco del proyecto subvencionado no puede ser inferior al Salario Mínimo Interprofesional (SMI), ni a la estipulada en el correspondiente convenio o marco normativo de referencia (punto 7 de las bases 2025: requisitos de los proyectos)."]
["10. Los materiales producidos de difusión, estudios, informes o materiales didácticos utilizados, etc. en el caso de tratarse de gasto elegible de la subvención, deberán tener licencia Creative Commons -Compartir Igual- (share a like) y no podrá tener la condición –Sin Obras Derivadas- (no derivate Works)."]
["11. Los proyectos subvencionados deben fomentar actividades de interés público o social, las cuales deben ser gratuitas para las personas participantes o en ningún caso el precio debe suponer un obstáculo para su participación, buscando otras formas de acceso para personas con dificultades económicas. En el caso de que haya algún tipo de lucro, tendrá que revertir en las propias actividades subvencionadas."]
["12. El Ayuntamiento de Barcelona y sus entidades municipales en ningún caso subvencionarán el mismo proyecto, ejecutado durante el mismo periodo, por ningún otro procedimiento de concesión que no sea el regulado por las bases reguladoras."]
["13. El/la beneficiario/a no podrá alterar en ningún caso el destino de las subvenciones concedidas."]

{"sheet":"Relación de ingresos ","index":2,"n_rows":73,"n_cols":10,"rows_kept":73,"cut":false,"hidden":false,"merged":[[5,0,5,1],[6,0,6,1],[68,0,68,4],[62,6,62,9],[63,6,63,9],[64,6,64,9],[65,6,65,9],[67,0,67,3],[67,6,67,9],[58,0,58,3],[52,0,52,3],[55,6,55,9],[54,6,54,9],[58,6,58,9],[52,6,52,9],[46,0,46,3],[2,0,2,9],[11,0,11,9],[17,0,17,9],[9,6,10,9],[12,6,12,9],[9,0,10,0],[13,6,13,9],[15,6,15,9],[5,2,5,3],[4,2,4,3],[8,0,8,3],[6,2,6,3],[9,2,9,3],[9,1,10,1],[16,0,16,3],[7,0,7,1],[40,0,40,3],[34,0,34,3],[16,6,16,9],[22,6,22,9],[30,6,30,9],[40,6,40,9],[39,6,39,9],[34,6,34,9],[33,6,33,9],[28,0,28,3],[22,0,22,3],[38,6,38,9],[36,6,36,9],[26,6,26,9],[31,6,31,9],[18,6,18,9],[20,6,20,9],[19,6,19,9],[49,6,49,9],[48,6,48,9],[24,6,24,9],[28,6,28,9],[27,6,27,9],[43,6,43,9],[42,6,42,9],[32,6,32,9],[25,6,25,9],[46,6,46,9],[45,6,45,9],[44,6,44,9],[68,6,68,9],[50,6,50,9],[51,6,51,9],[21,6,21,9],[60,6,60,9],[66,6,66,9],[61,6,61,9]]}
[]
[]
["Detalle de todos los ingresos obtenidos y aportaciones del mismo beneficiario para la ejecución de la actividad subvencionada"]
["Datos básicos"]
["Nombre de la persona física/jurídica beneficiaria:        ",null,{"$f":"IF('Relación de gastos'!C4:D4<>\"\",'Relación de gastos'!C4:D4,\"\")","v":""},null,"Importe del coste total del proyecto :",null,null,{"$f":"IF(+'Relación de gastos'!H4=\"\",\"\",+'Relación de gastos'!H4)","v":""},"euros"]
["Código de subvención:",null,{"$f":"IF('Relación de gastos'!C5:D5<>\"\",'Relación de gastos'!C5:D5,\"\")","v":""},null,"Importe de la subvención otorgada:",null,null,{"$f":"IF(+'Relación de gastos'!H5=\"\",\"\",+'Relación de gastos'!H5)","v":""},"euros"]
["Nombre del proyecto subvencionado:",null,{"$f":"IF('Relación de gastos'!C6:D6<>\"\",'Relación de gastos'!C6:D6,\"\")","v":""},null,"Periodo de ejecución del proyecto subvencionado:",null,null,{"$f":"IF(+'Relación de gastos'!H6=\"\",\"\",+'Relación de gastos'!H6)","v":""},"a",{"$f":"IF(+'Relación de gastos'!K6=\"\",\"\",+'Relación de gastos'!K6)","v":""}]
["Resto de personas  firmantes acuerdo intercooperación (si aplica):         ",null,{"$f":"IF('Relación de gastos'!C7:D7<>\"\",'Relación de gastos'!C7:D7,\"\")","v":""}]
["Ingresos del proyecto/actividad/servicio subvencionado (*)"]
["núm. de orden (0)","Concepto del ingreso","Emisor/a del ingreso",null,"Fecha de cobro\n(dd/mm/aaaa)","Importe","Observaciones"]
[null,null,"NIF","Nombre","(1)","euros"]
["A. Subvención municipal "]
["A.1"]
[]
[]
[]
[null,null,null,null,"Subtotal A",{"$f":"SUM(F13:F16)","v":0}]
["B. Subvenciones de otras administraciones"]
["B.1"]
[]
[]
[]
[null,null,null,null,"Subtotal B",{"$f":"SUM(F19:F22)","v":0}]
["C. Subvenciones de entes privados"]
[]
[]
[]
[]
[null,null,null,null,"Subtotal C",{"$f":"SUM(F25:F28)","v":0}]
["D. Recursos propios de la organización aplicados al proyecto"]
[]
[]
[]
[]
[null,null,null,null,"Subtotal D",{"$f":"SUM(F31:F34)","v":0}]
["E. Taquillaje"]
[]
[]
[]
[]
[null,null,null,null,"Subtotal E",{"$f":"SUM(F37:F40)","v":0}]
["F. Cuotas de inscripción"]
[]
[]
[]
[]
[null,null,null,null,"Subtotal F",{"$f":"SUM(F43:F46)","v":0}]
["G. Venta de Productos"]
[]
[]
[]
[]
[null,null,null,null,"Subtotal G",{"$f":"SUM(F49:F52)","v":0}]
["H. Publicidad y/o Esponsorización"]
[]
[]
[]
[]
[null,null,null,null,"Subtotal H",{"$f":"SUM(F55:F58)","v":0}]
["I. Otros ingresos"]
[]
[]
[]
[]
[]
[]
[]
[null,null,null,null,"Subtotal I",{"$f":"SUM(F61:F67)","v":0}]
["Total INGRESOS",null,null,null,null,{"$f":"+F17+F23+F29+F35+F41+F47+F53+F59+F68","v":0}]
[]
[null,"(*) Notas"]
[null,"(0) El número de orden debe ser correlativo empezando por el número A1, A2, A3, B4, etc."]
[null,"(1) En caso que el ingreso esté pendiente de cobro, indicar \"P. Cobro\"."]

{"sheet":"Gastos e ingresos","index":3,"n_rows":42,"n_cols":11,"rows_kept":42,"cut":false,"hidden":false,"merged":[[2,0,2,5],[41,0,41,10],[30,6,30,8],[11,8,12,8],[11,9,12,9],[11,2,12,2],[11,3,12,3],[11,6,12,7],[11,0,12,1],[15,1,16,1],[15,2,16,2],[15,3,16,3],[25,6,25,7],[18,2,19,2],[18,3,19,3],[15,4,16,4],[18,0,19,1],[4,5,4,6],[5,0,5,1],[5,2,5,3],[5,5,5,6],[10,6,10,7],[6,0,6,1],[6,2,6,3],[10,0,10,1],[4,0,4,1],[4,2,4,3],[7,0,7,1],[7,2,7,3],[26,6,26,7],[26,8,26,9],[39,0,39,10],[29,5,29,8],[40,0,40,10],[34,0,34,10],[35,0,35,10],[36,0,36,10],[37,0,37,10],[38,0,38,10]]}
[]
[]
["Estado de los gastos realizados y de los ingresos obtenidos para la ejecución de la actividad subvencionada (*)"]
["Datos básicos"]
["Nombre de la persona física/jurídica beneficiaria:",null,{"$f":"IF('Relación de gastos'!C4:D4<>\"\",'Relación de gastos'!C4:D4,\"\")","v":""},null,null,"Importe del coste total del proyecto:",null,{"$f":"'Relación de ingresos '!H5","v":""},"euros"]
["Código de subvención:",null,{"$f":"IF('Relación de gastos'!C5:D5<>\"\",'Relación de gastos'!C5:D5,\"\")","v":""},null,null,"Importe de la subvención otorgada:",null,{"$f":"'Relación de ingresos '!H6","v":""},"euros"]
["Nombre del proyecto subvencionado:",null,{"$f":"IF('Relación de gastos'!C6:D6<>\"\",'Relación de gastos'!C6:D6,\"\")","v":""},null,null,"Periodo de ejecución del proyecto subvencionado:",null,null,{"$f":"'Relación de ingresos '!H7","v":""},"a",{"$f":"'Relación de ingresos '!J7","v":""}]
["Resto de personas  firmantes acuerdo intercooperación (si aplica):         ",null,{"$f":"IF('Relación de gastos'!C7:D7<>\"\",'Relación de gastos'!C7:D7,\"\")","v":""}]
[]
["SUBVENCIONES PARA EL FORTALECIMIENTO DE LA ECONOMÍA SOCIAL Y SOLIDARIA Y LA INTERCOOPERACIÓN 2025"]
["GASTOS PREVISTOS",null,"importe en euros",null,null,null,"INGRESOS PREVISTOS",null,"importe en euros"]
["Gastos directos \n(aquellos que se identifican directamente con el proyecto)",null,"Gastos directos \n(aquellos que se identifican directamente con el proyecto)","Gastos realizados (2)","Diferencia\n",null,"Ingresos previstos",null,"Previsión inicial (1)","Ingresos obtenidos (3)"]
[null,null,null,null,"(2-1)"]
["Aa","D.1 Nóminas y seguridad social (régimen general o socios/as cooperativistas en régimen de autónomos) del personal propio vinculado al proyecto subvencionable",null,{"$f":"'Relación de gastos'!H17","v":0},{"$f":"+C14-D14","v":0},null,"A.","Subvención municipal (importe solicitado a la instancia/otorgado)",null,{"$f":"'Relación de ingresos '!F17","v":0}]
[null,"D.2 Rendimientos anuales netos del empresario/a individual (ver 13.2 bases)",null,{"$f":"'Relación de gastos'!H23","v":0},{"$f":"+C15-D15","v":0},null,"B.","Subvenciones de otras administraciones",null,{"$f":"'Relación de ingresos '!F23","v":0}]
[null,"D.3 Trabajos realizados por profesionales y empresas externas directamente vinculadas al proyecto, (ver gastos directos, modalidad Aa, a la convocatoria)",null,{"$f":"'Relación de gastos'!H30","v":0},{"$f":"+C16-D16","v":0},null,"C.","Subvenciones de ente privados",null,{"$f":"'Relación de ingresos '!F29","v":0}]
[null,null,null,null,null,null,"D.","Recursos propios de la organización aplicados al proyecto",null,{"$f":"'Relación de ingresos '!F35","v":0}]
[null,"Total Gastos Directos \n(D1+D2 Máx. 40% importe imputable a la subvención)",{"$f":"SUM(C14:C17)","v":0},{"$f":"SUM(D14:D17)","v":0},{"$f":"SUM(E14:E17)","v":0},null,"E.","Taquillaje",null,{"$f":"'Relación de ingresos '!F41","v":0}]
["Gastos indirectos (se podrán asignar al proyecto haciendo sevir un porcentaje de asignación)",null,"Previsión inicial o reformulada ya aprobada (1)","Gastos realizados (2)","Diferencia\n",null,"F.","Cuotas de inscripción",null,{"$f":"'Relación de ingresos '!F47","v":0}]
[null,null,null,null,"(2-1)",null,"G.","Venta de Productos",null,{"$f":"'Relación de ingresos '!F53","v":0}]
[null,"I.1 Personal propio vinculado indirectamente (nóminas y seguridad social)",null,{"$f":"'Relación de gastos'!H38","v":0},{"$f":"+C21-D21","v":0},null,"H","Publicidad y/o Esponsorización",null,{"$f":"'Relación de ingresos '!F59","v":0}]
[null,"I.2 Seguros",null,{"$f":"'Relación de gastos'!H44","v":0},{"$f":"+C22-D22","v":0},null,"I.","Otros ingresos",null,{"$f":"'Relación de ingresos '!F68","v":0}]
[null,"I.3 Amortización",null,{"$f":"'Relación de gastos'!H50","v":0},{"$f":"+C23-D23","v":0},null,null,"Total Ingresos",{"$f":"SUM(I14:I22)","v":0},{"$f":"SUM(J14:J22)","v":0}]
[null,"I.4 Alquiler de bienes inmuebles",null,{"$f":"'Relación de gastos'!H56","v":0},0]
[null,"I.5 Adquisición de materiales y bienes consumibles parcialmente imputables al proyecto",null,{"$f":"'Relación de gastos'!H62","v":0},0]
[null,"I.6 Mantenimiento de edificios y/o instalaciones",null,{"$f":"'Relación de gastos'!H68","v":0},0,null,"Ingresos menos gastos",null,{"$f":"+I23-C32","v":0},{"$f":"+J23-D32","v":0}]
[null,"I.7 Comunicaciones (teléfono, correos, conexión a internet)",null,{"$f":"'Relación de gastos'!H74","v":0},0,null,"Desviación de Gastos (4)",null,"Desviación de ingresos (4)"]
[null,"I.8 Gastos financieros",null,{"$f":"'Relación de gastos'!H80","v":0},0,null,"Importe"," % ","importe en euros","%"]
[null,"I.9 Suministros",null,{"$f":"'Relación de gastos'!H86","v":0},0,null,{"$f":"D32-C32","v":0},{"$f":"D32/C32","v":{"$error":"#DIV/0!"}},{"$f":"J23-I23","v":0},{"$f":"J23/I23","v":{"$error":"#DIV/0!"}}]
[null,"I.10 Trabajo realizado por otras empresas, parcialmente imputables al proyecto subvencionable (limpieza, seguridad...)",null,{"$f":"'Relación de gastos'!H92","v":0},{"$f":"+C30-D30","v":0},"% subvencionado inicialmente o después de reformulación (5)",null,null,null,{"$f":"I14/I23","v":{"$error":"#DIV/0!"}}]
[null,"Total Gastos Indirectos (Máx. 10% subv)",{"$f":"SUM(C21:C30)","v":0},{"$f":"SUM(D21:D30)","v":0},{"$f":"SUM(E21:E30)","v":0},null,"% subvencionado después de justificación (6)",null,null,{"$f":"+J14/J23","v":{"$error":"#DIV/0!"}}]
[null,"Total Gastos",{"$f":"C18+C31","v":0},{"$f":"D18+D31","v":0},{"$f":"E18+E31","v":0}]
[]
["(*) Notas"]
["Las columnas sombreadas en color se irán rellenando automáticamente a partir de los datos introducidos en las pestañas relación de gastos y relación de ingresos. Por lo tanto, no imprimí esta hoja hasta haber rellenado a los demás."]
["(1) Previsión inicial o reformulación ya aprobada= Se debe indicar la previsión inicial de gastos y de ingresos según lo que se indicó en el proyecto original en el \"plan de viabilidad económica del proyecto - presupuesto general\". En caso de que ya se haya aprobado una reformulación, se debe indicar las cantidades reformuladas."]
["(2) Gastos reales = Coste real total del proyecto subvencionado. Esta columna se actualiza con los datos de la pestaña relación de gastos, no hay que rellenar los datos, sólo habrá que revisar que son correctos."]
["(2-1) Esta columna está vinculada y se actualiza con los datos de las dos columnas anteriores, no hay que rellenar ningún dato."]
["(3) Ingresos reales = Total de ingresos obtenidos para la realización del proyecto subvencionado. Esta columna se actualiza con los datos de la pestaña relación de ingresos, no hay que rellenar los datos, sólo habrá que revisar que son correctos."]
["(4) Desviación: En el caso de los gastos, la desviación es la diferencia entre gastos reales y la previsión inicial de gastos; y en el caso de ingresos, la diferencia entre los ingresos reales y la previsión inicial de ingresos."]
["(5) % financiación municipal inicial o después de reformulación = porcentaje que supone la subvención municipal (A) respecto del total de ingresos del proyecto."]
["(6) % financiación municipal tras justificación = porcentaje que supone la subvención municipal (A) respecto del total de ingresos del proyecto subvencionado. En caso de existir una desviación siempre se debe motivar."]